Cogmind - Beta 16 @@@ ROGUE MODE // 2025.12.20 @ 06:07:14 Player: tsintsir Result: Destroyed self via exploding Fusion Modulator Performance ------------- Evolutions (3) 1500 Regions Visited (4) 800 Robots Destroyed (52) 260 Value Destroyed (1431) 1431 Prototype IDs (1) 20 Alien Tech Used (0) 0 Bonus (0) 0 TOTAL SCORE: 4011 Bonus ------- None Cogmind --------- Core Integrity 0/700 Matter 236/300 Energy 94/100 System Corruption 1% Temperature Cool (37) Movement Hovering (50) Location -7/Factory Parts ------- > --- POWER (2) -------- (None) > --- PROPULSION (3) --- Aerolev Unit > --- UTILITY (5) ------ Signal Interpreter > --- WEAPON (3) ------- Chainsword > --- INVENTORY (5) ---- (None) Peak State ------------ > --- POWER ------------ Deuterium Engine > --- PROPULSION ------- Aluminum Leg Improved Aluminum Leg > --- UTILITY ---------- Improved Heat Sink Signal Interpreter Terrain Scan Processor Melee Analysis Suite EM Disruption Field > --- WEAPON ----------- Heavy Particle Cannon Heavy Particle Cannon Chainsword > --- INVENTORY -------- Aerolev Unit [Rating: 29] Favorites ----------- Power Ion Engine Engine Ion Engine Power Core Light Nuclear Core Propulsion Aluminum Leg Leg Aluminum Leg Hover Unit Aerolev Unit Utility Small Storage Unit Device Improved Terrain Scanner Storage Small Storage Unit Processor Signal Interpreter Weapon Small Laser Energy Gun Small Laser Energy Cannon Heavy Particle Cannon Special Weapon Mining Laser Slashing Weapon Chainsword Build | -11 -10 -9 -8 -7 ------- Run | Yrd Mat Mat Mat Fac Slots Evolved 6 | . . 2 2 2 Power 1 | . . . . 1 Propulsion 1 | . . . . 1 Utility 3 | . . 2 1 . Weapon 1 | . . . 1 . Parts Attached 48 | 7 4 24 7 6 Power 6 | 1 . 2 2 1 Engine 5 | 1 . 2 1 1 Core 1 | . . . 1 . Reactor . | . . . . . Propulsion 18 | 2 3 9 3 1 Treads . | . . . . . Leg 16 | 2 3 9 1 1 Wheel . | . . . . . Hover 2 | . . . 2 . Flight . | . . . . . Utility 12 | 2 . 7 . 3 Device 8 | 1 . 5 . 2 Storage 1 | 1 . . . . Processor 3 | . . 2 . 1 Hackware . | . . . . . Protection . | . . . . . Artifact . | . . . . . Weapon 12 | 2 1 6 2 1 Energy Gun 7 | 2 1 4 . . Energy Cannon 3 | . . 1 2 . Ballistic Gun . | . . . . . Ballistic Cannon . | . . . . . Launcher . | . . . . . Special Weapon 1 | . . 1 . . Impact Weapon . | . . . . . Slashing Weapon 1 | . . . . 1 Piercing Weapon . | . . . . . Special Melee Weapon . | . . . . . Unidentified Prototypes 1 | . . . 1 . Parts Lost 29 | . . 9 12 8 Power 4 | . . 1 3 . Propulsion 7 | . . 1 4 2 Utility 10 | . . 4 2 4 Weapon 8 | . . 3 3 2 Highest Loss Streak 8 | . . 3 7 8 To Critical Strikes . | . . . . . Average Backups 4 | . 5 6 3 1 Power . | . 1 . . . Propulsion 2 | . 1 3 2 . Utility . | . 1 . . . Weapon 1 | . 1 1 . . Tool/Special . | . . . . . Unused Backups . | . . . . . Power . | . . . . . Propulsion . | . . . . . Utility . | . . . . . Weapon . | . . . . . Tool/Special . | . . . . . Average Slot Usage (%) 91 | . 99 96 64 56 Engine 11 | . 14 11 5 . Leg 23 | . 28 21 12 12 Device 13 | . 14 16 6 7 Storage 11 | . 14 11 5 . Processor 7 | . . 13 18 14 Energy Gun 21 | . 27 21 10 . Energy Cannon 1 | . . . 2 12 Peak Build Rating 29 | 9 9 12 15 29 Average Rating 10 | 6 8 10 10 18 On Entrance 7 | . 9 9 10 8 Avg Prop Armor Cover (%) . | . . . . . Naked Turns . | . . . . . Heaviest Build 26 | 13 13 17 22 26 Greatest Support 23 | 20 20 20 20 23 Greatest Overweight (x) 3 | 3 . 1 1 2 Average Overweight (x) . | . . . . . Largest Inventory Capacity 8 | 8 8 8 8 5 Average Capacity 7 | 7 8 8 6 5 Most Carried 8 | 1 8 8 5 5 Average Carried 4 | . 5 6 3 1 Final Capacity 8 | 8 8 8 5 5 Final Carried 8 | 1 8 5 5 . Class Distribution -------------------- 48% | Mutant 47% | Scavenger-Mutant 3% | Scavenger-Skirmisher Dominant Class ---------------- Mutant | -10/Materials Scavenger-Mutant | -9/Materials Scavenger-Mutant | -8/Materials Mutant | -7/Factory Resources | -11 -10 -9 -8 -7 ----------- Run | Yrd Mat Mat Mat Fac Matter Collected 704 | 239 108 293 64 . Remotely . | . . . . . Salvage Created 1590 | 21 527 681 152 209 Parts 96 | 2 38 42 6 8 Haulers Intercepted 2 | . 2 . . . Recyclers Shooed 4 | . 1 2 1 . Parts Field Recycled . | . . . . . Retrieved Matter . | . . . . . Parts Self-Destructed . | . . . . . Prevented . | . . . . . Parts Restored . | . . . . . Kills | -11 -10 -9 -8 -7 ------- Run | Yrd Mat Mat Mat Fac Combat Hostiles Destroyed 40 | . 10 21 3 6 Guns 32 | . 10 20 2 . Cannons 1 | . . . 1 . AOE 7 | . . 1 . 6 Classes Destroyed 12 | 1 7 2 . 2 Builder 1 | . 1 . . . Tunneler 1 | 1 . . . . Hauler 2 | . 2 . . . Recycler 2 | . 1 1 . . Operator 2 | . 1 1 . . Watcher 4 | . 3 1 . . Swarmer 12 | . 5 7 . . Grunt 24 | . 5 12 3 4 Brawler 1 | . . 1 . . Duelist 1 | . . . . 1 Sentry 1 | . . 1 . . Programmer 1 | . . . . 1 Best Kill Streak 6 | 1 4 6 1 6 Combat Bots Only 6 | . 3 5 1 6 Max Kills in Single Turn 6 | 1 1 2 1 6 Gunslinging . | . . . . . Exploded 6 | . . 1 . 6 Melee . | . . . . . Uniques/NPCs Destroyed . | . . . . . Combat | -11 -10 -9 -8 -7 -------- Run | Yrd Mat Mat Mat Fac Hostile Shots Fired 368 | . 37 162 98 71 Missed 93 | . 9 34 28 22 Hits 275 | . 28 128 70 49 Melee 12 | . . 3 . 9 Projectile 263 | . 28 125 70 40 Critical Strikes 11 | . . 3 4 4 Damage Taken 4227 | . 287 1503 1215 1222 Core 1501 | . 52 273 417 759 Absorbed by Shields . | . . . . . Regen/Repaired (Parts) 42 | . 42 . . . Core Remaining (%) 58 | 100 79 31 24 . Volleys Fired 161 | 3 53 78 27 . Largest 3 | 2 2 2 3 . Hottest 150 | 80 80 124 150 . Shots Fired 300 | 6 106 147 41 . Gun 282 | 6 106 137 33 . Cannon 13 | . . 5 8 . Launcher . | . . . . . Special 5 | . . 5 . . Kinetic . | . . . . . Thermal 300 | 6 106 147 41 . Explosive . | . . . . . Electromagnetic . | . . . . . Robot Hit Streak 23 | 4 9 11 23 . Robot Miss Streak 5 | 2 5 5 1 . Penetration Max . | . . . . . Secondary Targets 3 | . 1 2 . . Max Gunslinging Chain 1 | . 1 1 . . Shots Hit Robots 194 | 4 57 91 34 8 Core Hits 87 | 1 31 40 12 3 Critical Kills . | . . . . . Critical Parts Destroyed . | . . . . . Critical Strikes 1 | . . 1 . . Burn 1 | . . 1 . . Melee Attacks 11 | . . . . 11 Impact . | . . . . . Slashing 11 | . . . . 11 Piercing . | . . . . . Sneak Attacks . | . . . . . Combat Hostiles . | . . . . . Follow-up Attacks . | . . . . . Damage Inflicted 3764 | 45 667 1415 497 1140 Guns 2140 | 45 663 1115 317 . Cannons 195 | . . 20 175 . Explosions 1160 | . . 256 . 904 Melee 236 | . . . . 236 Ramming 9 | . 4 . 5 . Kinetic . | . . . . . Thermal 3263 | 45 663 1159 492 904 Explosive 256 | . . 256 . . Electromagnetic . | . . . . . Impact . | . . . . . Slashing 236 | . . . . 236 Piercing . | . . . . . Highest Corruption 3 | . . 3 . . Average Corruption 3 | . . 3 . . Corruption Purged . | . . . . . Corruption Blocked . | . . . . . Effects 16 | . . 16 . . Message Errors 6 | . . 6 . . Matter Fused 4 | . . 4 . . Heat Flow Errors 1 | . . 1 . . Energy Discharges 1 | . . 1 . . Data Loss (minor) 1 | . . 1 . . Data Loss (major) 1 | . . 1 . . Misfires 1 | . . 1 . . Weapon Failures 1 | . . 1 . . Overload Shots . | . . . . . Overflow Damage 361 | . . 148 . 213 Projectiles . | . . . . . Explosions 345 | . . 148 . 197 Melee 16 | . . . . 16 Knockbacks . | . . . . . Impact . | . . . . . Kinetic . | . . . . . Secondary . | . . . . . Self-Inflicted Damage 347 | . . 75 2 270 Shots 4 | . . 1 . 3 Rammed 3 | . . . 3 . Targets Rammed 5 | . 2 . 3 . Kicked 2 | . 2 . . . Crushed . | . . . . . Highest Temperature 272 | 36 174 272 253 4 Average Temperature 77 | 18 40 114 81 4 Received Heat Transfer 1746 | . 114 552 702 378 Effects 5 | . . 4 1 . Energy Bleed 1 | . . 1 . . Interference 4 | . . 3 1 . Siege Activations . | . . . . . Martial Activations . | . . . . . Shielding Activations . | . . . . . Robots Disrupted . | . . . . . Combat Hostiles . | . . . . . Robots Corrupted . | . . . . . Combat Hostiles . | . . . . . Parts Fried . | . . . . . Impact Corruptions . | . . . . . Robots Melted . | . . . . . Combat Hostiles . | . . . . . Parts Melted 8 | . 2 5 1 . Heat Transferred 5848 | 100 1500 2764 984 500 Parts Sabotaged . | . . . . . Parts Stolen . | . . . . . Parts Stripped . | . . . . . Power Chain Reactions . | . . . . . Alert | -11 -10 -9 -8 -7 ------- Run | Yrd Mat Mat Mat Fac Maximum Alert Level 1 | . . 1 . . Low Security (%) 95 | 100 100 86 100 100 Level 1 4 | . . 13 . . Level 2 . | . . . . . Level 3 . | . . . . . Level 4 . | . . . . . Level 5 . | . . . . . High Security . | . . . . . Max Security . | . . . . . Peak Influence 238 | 5 101 238 65 24 Initial 65 | . . . 65 16 Average 33 | . 20 70 24 2 Influence Increases 1355 | 5 313 627 177 233 Destroy 0b10 Robot/C 800 | . 200 420 60 120 Destroy 0b10 Robot/NC 60 | 5 40 15 . . Destroy Leader 142 | . 40 72 10 20 Successful Hack 85 | . 33 12 16 24 Disable Machine 90 | . . 45 . 45 Destroy Structure 58 | . . 33 1 24 Lose Combat Pursuer 120 | . . 30 90 . Influence Decreases 1147 | 5 313 473 295 61 Entered New Map 109 | . . . 89 20 Time Decay 882 | 5 313 403 120 41 Lost Part 156 | . . 70 86 . Squads Dispatched 6 | . 2 2 1 1 Investigation 3 | . 1 1 1 . Extermination 1 | . . . . 1 Reinforcement 2 | . 1 1 . . Assault . | . . . . . Garrison . | . . . . . Intercept . | . . . . . Searches Triggered . | . . . . . Construction Impeded . | . . . . . Haulers Reinforced . | . . . . . Active Scanning Responses . | . . . . . Cargo Convoy Interrupts . | . . . . . Stealth | -11 -10 -9 -8 -7 --------- Run | Yrd Mat Mat Mat Fac Distress Signals 5 | . 1 2 2 . Communications Jammed . | . . . . . Distress Signals . | . . . . . Times Spotted 81 | . 25 28 21 7 Peak Tracking Total 8 | . 4 5 8 7 Tactical Retreats 5 | . . 1 4 . Traps | -11 -10 -9 -8 -7 ------- Run | Yrd Mat Mat Mat Fac Traps Triggered 1 | . 1 . . . Indirectly . | . . . . . Trap Hack Attempts . | . . . . . Triggered . | . . . . . Disarmed . | . . . . . Reprogrammed . | . . . . . Reused . | . . . . . Traps Extracted . | . . . . . Installed . | . . . . . Triggered . | . . . . . Machines | -11 -10 -9 -8 -7 ---------- Run | Yrd Mat Mat Mat Fac Machines Disabled 6 | . . 3 . 3 Max in Single Turn 3 | . . 3 . 3 Machines Repaired . | . . . . . Machines Dismantled . | . . . . . Machines Sabotaged . | . . . . . Overloaded Fab Kills . | . . . . . Hacking | -11 -10 -9 -8 -7 --------- Run | Yrd Mat Mat Mat Fac Machines Accessed 15 | . 6 6 2 1 Terminals 13 | . 5 6 2 . Fabricators . | . . . . . Repair Stations 1 | . 1 . . . Recycling Units . | . . . . . Scanalyzers 1 | . . . . 1 Garrison Access . | . . . . . Total Hacks 40 | . 18 14 5 3 Successful 20 | . 10 6 3 1 Failed 20 | . 8 8 2 2 Catastrophic 6 | . 2 2 2 . Database Lockouts . | . . . . . Manual 31 | . 12 14 5 . Terminals 31 | . 12 14 5 . Fabricators . | . . . . . Repair Stations 6 | . 6 . . . Recycling Units . | . . . . . Scanalyzers 3 | . . . . 3 Garrison Access . | . . . . . Terminal Hacks 6 | . 3 2 1 . Branch Access Points 2 | . 1 1 . . Terminal Index 3 | . 1 1 1 . Registered Components 1 | . 1 . . . Fabricator Hacks . | . . . . . Repair Station Hacks 5 | . 5 . . . Scan Component 3 | . 3 . . . Repair 2 | . 2 . . . Recycling Unit Hacks . | . . . . . Scanalyzer 1 | . . . . 1 Retrieve Study 1 | . . . . 1 Garrison Access Hacks . | . . . . . Unauthorized Hacks 8 | . 2 4 2 . Terminals 8 | . 2 4 2 . Assimilate 5 | . 1 3 1 . Operators 3 | . 1 1 1 . Fabricators . | . . . . . Repair Stations . | . . . . . Recycling Units . | . . . . . Scanalyzers . | . . . . . Garrison Access . | . . . . . Data Cores Recovered . | . . . . . Used . | . . . . . Hacking Detections 13 | . 5 5 2 1 Full Trace Events 2 | . . 1 1 . Feedback Events . | . . . . . Feedback Blocked . | . . . . . Robot Schematics Acquired . | . . . . . Robots Built . | . . . . . Authchips . | . . . . . Time . | . . . . . Total Robot Build Rating . | . . . . . Part Schematics Acquired . | . . . . . Parts Built . | . . . . . Authchips . | . . . . . Time . | . . . . . Total Part Build Rating . | . . . . . Part Studies Acquired 1 | . . . . 1 Parts Repaired 2 | . 2 . . . Time 52 | . 52 . . . Parts Recycled . | . . . . . Recycled Matter . | . . . . . Retrieved Matter . | . . . . . Retrieved Components . | . . . . . Parts Scanalyzed . | . . . . . Part Schematics Acquired . | . . . . . Parts Damaged . | . . . . . Bothacking | -11 -10 -9 -8 -7 ------------ Run | Yrd Mat Mat Mat Fac Used RIF Installer . | . . . . . Robots Hacked . | . . . . . Non-combat . | . . . . . Combat . | . . . . . Robot Hacks Applied . | . . . . . Relay Couplers Released . | . . . . . Fabnet Peak Effective % . | . . . . . Robots Rewired . | . . . . . Allies Hacked . | . . . . . Hacks Repelled . | . . . . . Allies | -11 -10 -9 -8 -7 -------- Run | Yrd Mat Mat Mat Fac Total Allies 1 | . 1 . . . Largest Group 1 | . 1 1 1 . Highest-Rated Group 10 | . 10 10 10 . Highest-Rated Ally 10 | . 10 10 10 . Total Orders 10 | . 5 4 1 . STAY 5 | . 2 2 1 . FOLLOW 5 | . 3 2 . . Ally Attacks . | . . . . . Total Damage . | . . . . . Kills . | . . . . . Allies Corrupted . | . . . . . Allies Melted . | . . . . . Intel | -11 -10 -9 -8 -7 ------- Run | Yrd Mat Mat Mat Fac Active Infowar (turns) 3229 | 35 1962 1035 197 . Sensors 94 | . . 94 . . Terrain 3229 | 35 1962 1035 197 . Robot Analysis Total . | . . . . . Derelict Logs Recovered . | . . . . . Drone Launches . | . . . . . Drone Recoveries . | . . . . . Exploration | -11 -10 -9 -8 -7 ------------- Run | Yrd Mat Mat Mat Fac Turns Passed 3925 | 119 1962 1190 284 370 Spaces Moved 2196 | 82 965 688 240 221 Core 14 | 9 . . 4 1 Treads . | . . . . . Legs 1965 | 73 965 688 83 156 Wheels . | . . . . . Hover 217 | . . . 153 64 Flight . | . . . . . Fastest Speed 46 | 50 120 120 46 50 Average Speed 112 | 115 120 120 73 101 Slowest Speed 200 | 200 120 190 190 190 Overloaded Moves . | . . . . . Propulsion Burnouts . | . . . . . Robots Hopped . | . . . . . Potential Cave-ins . | . . . . . Cave-ins Triggered . | . . . . . Exploration Rate (%) 31 | 5 82 37 28 4 Regions Visited 4 Branch Regions . Pre-discovered Areas . | . . . . . Known Exits Taken 2 | . . 1 1 . Unknown Exits Taken 2 | 1 1 . . . Scrap Searched . | . . . . . Spaces Dug 2 | . . 1 . 1 Terrain Destroyed 57 | . . 32 1 24 Melee 1 | . . . . 1 Projectile 4 | . . 3 1 . AOE 52 | . . 29 . 23 Terrain Rammed . | . . . . . Walls Destroyed . | . . . . . Machines Disabled . | . . . . . Actions | -11 -10 -9 -8 -7 --------- Run | Yrd Mat Mat Mat Fac Total 3306 | 97 1660 891 307 351 Wait 825 | 3 620 74 21 107 Move 2192 | 81 964 687 239 221 Hop . | . . . . . Pick Up 20 | 1 11 4 3 1 Fast Attach 31 | 7 1 16 4 3 Attach 20 | 1 . 7 5 7 Detach 9 | 1 . 5 2 1 Swap 16 | . 6 8 2 . Drop 16 | . 3 12 1 . Fire 161 | 3 53 78 27 . Melee 11 | . . . . 11 Ram 3 | . . . 3 . Kick 2 | . 2 . . . Crush . | . . . . . Escape Stasis . | . . . . . Rewire . | . . . . . Trap . | . . . . . Miscellaneous . | . . . . . Route ------- -11/Scrapyard -10/Materials (discovered 3 exits: *Mat / *Min / [*Sub]) -9/Materials (discovered 3 exits: *Mat / Min x2) -8/Materials -7/Factory History --------- Turn | Location | Event 2 | -11/Scrapyard | Met Revision 17 19 | -11/Scrapyard | Discovered new exit (range 15) 120 | -11/Scrapyard | Entered Materials 311 | -10/Materials | Build established: Mutant 455 | -10/Materials | Identified exit to Mines 967 | -10/Materials | Discovered new exit (range 12) 1457 | -10/Materials | Discovered new exit (range 16) 1659 | -10/Materials | Build established: Scavenger-Mutant 1862 | -10/Materials | Repaired Sml. Laser 1889 | -10/Materials | Repaired Sml. Laser 2082 | -10/Materials | Entered another Materials area 2082 | -9/Materials | Accompanied by 1 ally 2082 | -9/Materials | Evolved 2 slots: Utility x2 2721 | -9/Materials | Identified exit to Mines 2761 | -9/Materials | Discovered new exit (range 15) 2841 | -9/Materials | Core integrity fell below 50% 2991 | -9/Materials | Lost 3 parts (1n2w) 3048 | -9/Materials | Identified exit to Materials 3272 | -9/Materials | Entered another Materials area 3272 | -8/Materials | Accompanied by 1 ally 3272 | -8/Materials | Evolved 2 slots: Utility x1, Weapon x1 3386 | -8/Materials | Lost 4 parts (1p1n2w) 3500 | -8/Materials | Lost 7 parts (2p2n2u1w) 3510 | -8/Materials | Core integrity fell below 50% 3532 | -8/Materials | Discovered new exit (range 15) 3556 | -8/Materials | Identified exit to Factory 3556 | -8/Materials | Entered Factory 3556 | -7/Factory | Evolved 2 slots: Power x1, Propulsion x1 3760 | -7/Factory | Build established: Mutant 3892 | -7/Factory | Core integrity fell below 50% 3919 | -7/Factory | Lost 8 parts (2n4u2w) 3926 | -7/Factory | Destroyed self via exploding Fusion Modulator Last Messages --------------- 03870_ L-41 Fighter suffers critical hit (Burn). 03876_ Imp. Heat Sink destroyed. 03877_ Imp. Aluminum Leg destroyed. 03878_ EM Disruption Field destroyed. 03883_ Critical hit (Burn: +37). 03884_ Terrain Scan Processor destroyed. 03888_ Hvy. Particle Cannon destroyed. 03897_ Critical hit (Burn: +37). 03926_ Fusion Modulator explodes. 03926_ Destroyed Aluminum Leg. 03926_ Destroyed Imp. Deuterium Engine. 03926_ L-41 Fighter destroyed. 03926_ G-47 Trooper destroyed. 03926_ Fusion Modulator explodes. 03926_ Destroyed Aluminum Leg. 03926_ G-47 Trooper destroyed. 03926_ P-60 Hacker destroyed. 03926_ Destroyed Particle Gun. 03926_ Destroyed Lgt. Nuclear Core. 03926_ G-47 Trooper destroyed. Map ----- +----------------------------------------------------+ | ?????????????????????????????????????????????????? | | ?????????????????????????????????????????????????? | | ?????????????????????????????????????????????????? | | ?????????????????????????????????????????????????? | | ?????????????????????????????????????????????????? | | ?????????????????????????????????????????????????? | | ?????????????????????????????????????????????????? | | ?????????????????????????????????????????????????? | | ?????????????????????????????????????????????????? | | ?????????????????????????????????????????????????? | | ?????????????????????????????????????????????????? | | ?????????????????????????????????????????????????? | | ?????????????????????????????????????????????????? | | ???????????????????????##########????????????????? | | ???????????????????????# #????????????????? | | ???????????????????????# ##########?????### | | ???????????????????????# """ # ####### ] | | ???????????????????????# """ #"" [[ # # | | ??????????????????????## """ #"" [ # # | | ???????????????########; #"" # # | | ????????????????! #; #S # + | | ????????????????? ; % #"" """ # # | | ?????????????????"""" ; #"" """ # # | | ?????????????????"""" ;; % #"" """ # # | | ?????????????????"""" ;; = ; # ### | | ?????????????????"""" ; @ % ######+### #?? | | ?????????????????"""" ; = #?# #?? | | ?????????????????"""" ;; g #?# #?? | | ???????????????? a ;; ;## #?? | | ??????????????? ;; ### #?? | | ?????????????? ## #?# #?? | | ????????????? ?# #?# ########?? | | ????????????####+####?###;#####+### #????????? | | ????????????????? #????????? | | ????????????????? #????????? | | ??????????????????? """ """ """ """ #????????? | | ??????????????????????? """ """ """ ########## | | ????????????????????????""" """ """ # # | | ??????????????????????? # * # | | ????????????????????????""" """ """ # # | | ????????????????????????"?" """ """ " # | | ??????????????????????????? """ """ "/% # | | ??????????????????????????? # ! # | | ????????????????????????? # # | | ????????????????????????? # # | | ??????????????????????????######### # # | | ??????????????????????????????????# ########## | | ??????????????????????????????????# #????????? | | ??????????????????????????????????# #????????? | | ??????????????????????????????????# #????????? | +----------------------------------------------------+ Best States ------------- Heat Dissipation 48 Energy Generation 14 Energy Capacity 275 Matter Stores 300 Matter Capacity 300 Sight Range 16 Robot Scan Range 14 Terrain Scan Range 16 Terrain Scan Density 85 Evasion (%) 55 Item Schematics ----------------- None Robot Schematics ------------------ None Fabricated ------------ Nothing Repaired ---------- Sml. Laser | 72% | -10/Materials Sml. Laser | 67% | -10/Materials Studied --------- Chainsword | -7/Factory | Hacked Alien Tech Used ----------------- None Achievements -------------- None Challenges ------------ None Game ------ Seed SuspensionCloakArticulator Manual? 0 Play Time 00:46:23 Cumulative 33.3 hours Start 2025.12.20 @ 05:23:02 End 2025.12.20 @ 06:07:14 Sessions 1 Manual Loads 0 Difficulty Rogue Special Mode None Game No. 33 Rogue 33 Adventurer 0 Explorer 0 Win Type - Total 0 Types 0/0/0/0/0/0/0/0/0/0 Lore% 23 Gallery% 30 Achievement% 23 Wizard Run 0 Options --------- Layout 0 ASCII 0 Keyboard 0 Movement Mouse Keybinds 0 Fullscreen 2 Font 24/Smallcaps Map View 76x50 Zoom Use 0% Tactical HUD 1 Map Filters NONE Filters NONE Steam 1 RUN: a329be34-c908-4897-a9e5-8e6da67c614a